[Event "Live Chess"]
[Site "Chess.com"]
[Date "2024.06.02"]
[Round "-"]
[White "Cimon"]
[Black "WilliamofOrange16th"]
[Result "0-1"]
[WhiteElo "1839"]
[BlackElo "1992"]
[TimeControl "300"]
[EndTime "3:29:16 PDT"]
[Termination "WilliamofOrange16th won by resignation"]

1. d4 {[%clk 0:04:57.1]} 1... d5 {[%clk 0:04:59]} 2. Nf3 {[%clk 0:04:55.2]} 2...
c6 {[%clk 0:04:58.3]} 3. c4 {[%clk 0:04:52.3]} 3... Nf6 {[%clk 0:04:57.3]} 4. g3
{[%clk 0:04:50.8]} 4... a6 {[%clk 0:04:56.6]} 5. b3 {[%clk 0:04:45.6]} 5... Bf5
{[%clk 0:04:54.3]} 6. Bg2 {[%clk 0:04:41.9]} 6... e6 {[%clk 0:04:53.6]} 7. O-O
{[%clk 0:04:40.4]} 7... Nbd7 {[%clk 0:04:52.2]} 8. Nc3 {[%clk 0:04:33.8]} 8...
Bd6 {[%clk 0:04:50.6]} 9. Bb2 {[%clk 0:04:26.3]} 9... O-O {[%clk 0:04:44.8]} 10.
Nh4 {[%clk 0:04:25]} 10... Bg6 {[%clk 0:04:43.2]} 11. Nxg6 {[%clk 0:04:23.3]}
11... hxg6 {[%clk 0:04:43.1]} 12. e4 {[%clk 0:04:20.6]} 12... dxe4 {[%clk
0:04:41.9]} 13. Nxe4 {[%clk 0:04:19.3]} 13... Nxe4 {[%clk 0:04:41.3]} 14. Bxe4
{[%clk 0:04:18]} 14... f5 {[%clk 0:04:33.5]} 15. Bg2 {[%clk 0:04:13.7]} 15... e5
{[%clk 0:04:32.9]} 16. c5 {[%clk 0:04:04.1]} 16... Bc7 {[%clk 0:04:29.7]} 17.
Qc2 {[%clk 0:03:57.9]} 17... e4 {[%clk 0:04:25.2]} 18. f4 {[%clk 0:03:50.4]}
18... Nf6 {[%clk 0:04:24.3]} 19. Qe2 {[%clk 0:03:28.4]} 19... Ng4 {[%clk
0:03:58.9]} 20. h3 {[%clk 0:03:20.9]} 20... Nf6 {[%clk 0:03:57.7]} 21. Rfd1
{[%clk 0:03:13]} 21... Nd5 {[%clk 0:03:56.5]} 22. a3 {[%clk 0:03:09.3]} 22... g5
{[%clk 0:03:55.8]} 23. fxg5 {[%clk 0:02:39.6]} 23... Qxg5 {[%clk 0:03:54.3]} 24.
g4 {[%clk 0:02:33.8]} 24... Nf4 {[%clk 0:03:39.3]} 25. Qe3 {[%clk 0:02:22.5]}
25... Rae8 {[%clk 0:03:31.8]} 26. Bc1 {[%clk 0:02:17.7]} 26... fxg4 {[%clk
0:03:28.4]} 27. hxg4 {[%clk 0:01:54.3]} 27... Qxg4 {[%clk 0:03:25.9]} 28. Ra2
{[%clk 0:01:44]} 28... Qxd1+ {[%clk 0:03:20.5]} 0-1

[Event "Live Chess"]
[Site "Chess.com"]
[Date "2024.06.02"]
[Round "-"]
[White "oscalik"]
[Black "WorcesterYork"]
[Result "1/2-1/2"]
[WhiteElo "2238"]
[BlackElo "2463"]
[TimeControl "300"]
[EndTime "3:29:34 PDT"]
[Termination "Game drawn - insufficient material"]

1. e4 {[%clk 0:04:57.3]} 1... c5 {[%clk 0:04:59.6]} 2. Nf3 {[%clk 0:04:54.3]}
2... Nc6 {[%clk 0:04:59.2]} 3. Bb5 {[%clk 0:04:46.2]} 3... d6 {[%clk 0:04:58]}
4. O-O {[%clk 0:04:41.8]} 4... Bd7 {[%clk 0:04:57.3]} 5. Re1 {[%clk 0:04:38.1]}
5... Nf6 {[%clk 0:04:56.4]} 6. Nc3 {[%clk 0:04:34.5]} 6... a6 {[%clk 0:04:55.6]}
7. Bxc6 {[%clk 0:04:32.9]} 7... Bxc6 {[%clk 0:04:55.5]} 8. d4 {[%clk 0:04:32.4]}
8... cxd4 {[%clk 0:04:55]} 9. Nxd4 {[%clk 0:04:32.3]} 9... e6 {[%clk 0:04:54.5]}
10. b3 {[%clk 0:04:27.1]} 10... Be7 {[%clk 0:04:53.4]} 11. Bb2 {[%clk
0:04:26.2]} 11... O-O {[%clk 0:04:52.3]} 12. Nxc6 {[%clk 0:04:24.8]} 12... bxc6
{[%clk 0:04:51.3]} 13. Na4 {[%clk 0:04:24.5]} 13... e5 {[%clk 0:04:50.1]} 14. c4
{[%clk 0:04:23.1]} 14... Nd7 {[%clk 0:04:47.1]} 15. Qf3 {[%clk 0:04:18.9]} 15...
Re8 {[%clk 0:04:45.6]} 16. Rad1 {[%clk 0:04:17.1]} 16... c5 {[%clk 0:04:44.3]}
17. Nc3 {[%clk 0:04:12.5]} 17... Nf8 {[%clk 0:04:31.2]} 18. Nd5 {[%clk
0:04:08.9]} 18... Ne6 {[%clk 0:04:30.9]} 19. Qg4 {[%clk 0:03:45.9]} 19... Bf8
{[%clk 0:04:28.2]} 20. h4 {[%clk 0:03:42.3]} 20... g6 {[%clk 0:04:24.3]} 21. h5
{[%clk 0:03:36]} 21... Bg7 {[%clk 0:04:23.4]} 22. Rd3 {[%clk 0:03:31.3]} 22...
Ra7 {[%clk 0:04:10.8]} 23. Rf3 {[%clk 0:03:29]} 23... Qg5 {[%clk 0:04:01.5]} 24.
Qxg5 {[%clk 0:03:05.8]} 24... Nxg5 {[%clk 0:04:01.4]} 25. Rd3 {[%clk 0:03:04.3]}
25... Ne6 {[%clk 0:03:52.8]} 26. hxg6 {[%clk 0:02:52.4]} 26... hxg6 {[%clk
0:03:51.5]} 27. Ne3 {[%clk 0:02:45.7]} 27... Bf8 {[%clk 0:03:46]} 28. Ng4 {[%clk
0:02:43.4]} 28... Kg7 {[%clk 0:03:44.1]} 29. Bc1 {[%clk 0:02:31.8]} 29... f5
{[%clk 0:03:42.8]} 30. exf5 {[%clk 0:02:25.7]} 30... gxf5 {[%clk 0:03:42.7]} 31.
Ne3 {[%clk 0:02:21.8]} 31... f4 {[%clk 0:03:35.6]} 32. Nf5+ {[%clk 0:01:49.4]}
32... Kf6 {[%clk 0:03:34.5]} 33. Nxd6 {[%clk 0:01:42.7]} 33... Bxd6 {[%clk
0:03:34.4]} 34. Rxd6 {[%clk 0:01:41.6]} 34... Kf5 {[%clk 0:03:34.3]} 35. Rd5
{[%clk 0:01:36]} 35... Nd4 {[%clk 0:03:32.5]} 36. Rxc5 {[%clk 0:01:32.8]} 36...
f3 {[%clk 0:03:10.6]} 37. g4+ {[%clk 0:01:17.3]} 37... Kxg4 {[%clk 0:03:08]} 38.
Rcxe5 {[%clk 0:01:06.7]} 38... Rxe5 {[%clk 0:03:05.4]} 39. Rxe5 {[%clk 0:01:04]}
39... Ne2+ {[%clk 0:03:04.7]} 40. Kf1 {[%clk 0:01:03.3]} 40... Nxc1 {[%clk
0:03:01.9]} 41. Re6 {[%clk 0:00:58.2]} 41... Ne2 {[%clk 0:02:53.5]} 42. c5
{[%clk 0:00:55.6]} 42... Rd7 {[%clk 0:02:45.2]} 43. Ke1 {[%clk 0:00:53.9]} 43...
Nc3 {[%clk 0:02:43.7]} 44. Rd6 {[%clk 0:00:50.9]} 44... Re7+ {[%clk 0:02:39.1]}
45. Kf1 {[%clk 0:00:45.3]} 45... Nxa2 {[%clk 0:02:30.1]} 46. Rd4+ {[%clk
0:00:41.9]} 46... Kf5 {[%clk 0:02:28.5]} 47. Rc4 {[%clk 0:00:41.8]} 47... a5
{[%clk 0:02:24.2]} 48. c6 {[%clk 0:00:40.7]} 48... Nb4 {[%clk 0:02:19.4]} 49. c7
{[%clk 0:00:36.1]} 49... Re8 {[%clk 0:02:06.5]} 50. c8=Q+ {[%clk 0:00:35.6]}
50... Rxc8 {[%clk 0:02:05.7]} 51. Rxc8 {[%clk 0:00:35.5]} 51... Ke4 {[%clk
0:02:05.3]} 52. Rc5 {[%clk 0:00:30.6]} 52... Kd3 {[%clk 0:02:04.4]} 53. Rxa5
{[%clk 0:00:29.4]} 53... Kc3 {[%clk 0:02:03.9]} 54. Rf5 {[%clk 0:00:28.1]} 54...
Kxb3 {[%clk 0:02:02.9]} 55. Rxf3+ {[%clk 0:00:27.5]} 55... Kc4 {[%clk
0:02:02.1]} 56. Re3 {[%clk 0:00:27.1]} 56... Nd5 {[%clk 0:02:00.7]} 57. Re2
{[%clk 0:00:26.1]} 57... Kd4 {[%clk 0:01:59.9]} 58. f3 {[%clk 0:00:24.6]} 58...
Kd3 {[%clk 0:01:57.9]} 59. Kf2 {[%clk 0:00:22.9]} 59... Kd4 {[%clk 0:01:56.6]}
60. Kg3 {[%clk 0:00:20.5]} 60... Ne3 {[%clk 0:01:53.2]} 61. Kf4 {[%clk
0:00:17.9]} 61... Nd5+ {[%clk 0:01:51.4]} 62. Kf5 {[%clk 0:00:17.3]} 62... Nc3
{[%clk 0:01:47.2]} 63. Rd2+ {[%clk 0:00:16.3]} 63... Ke3 {[%clk 0:01:45.8]} 64.
Rd8 {[%clk 0:00:15.1]} 64... Ne2 {[%clk 0:01:43.5]} 65. f4 {[%clk 0:00:13.3]}
65... Nxf4 {[%clk 0:01:41.9]} 66. Re8+ {[%clk 0:00:12.5]} 66... Kf3 {[%clk
0:01:41.3]} 67. Ra8 {[%clk 0:00:11.7]} 67... Ne2 {[%clk 0:01:40.3]} 68. Ra3+
{[%clk 0:00:10.7]} 68... Kf2 {[%clk 0:01:39]} 69. Ke4 {[%clk 0:00:10.6]} 69...
Ng3+ {[%clk 0:01:37.3]} 70. Kf4 {[%clk 0:00:10.2]} 70... Ne2+ {[%clk 0:01:35.7]}
71. Ke4 {[%clk 0:00:09.9]} 71... Ng3+ {[%clk 0:01:34.7]} 72. Rxg3 {[%clk
0:00:08.7]} 72... Kxg3 {[%clk 0:01:33.7]} 1/2-1/2

[Event "Live Chess"]
[Site "Chess.com"]
[Date "2024.06.02"]
[Round "-"]
[White "r0ad_t0-gm"]
[Black "Larchikov"]
[Result "1-0"]
[WhiteElo "2260"]
[BlackElo "2042"]
[TimeControl "300"]
[EndTime "3:29:56 PDT"]
[Termination "r0ad_t0-gm won by resignation"]

1. Nf3 {[%clk 0:04:58.5]} 1... d5 {[%clk 0:04:58.4]} 2. g3 {[%clk 0:04:57.5]}
2... c5 {[%clk 0:04:58.3]} 3. Bg2 {[%clk 0:04:56.3]} 3... Nc6 {[%clk 0:04:58]}
4. d4 {[%clk 0:04:55.1]} 4... cxd4 {[%clk 0:04:56.9]} 5. Nxd4 {[%clk 0:04:55]}
5... e5 {[%clk 0:04:56.3]} 6. Nxc6 {[%clk 0:04:54.3]} 6... bxc6 {[%clk
0:04:56.2]} 7. c4 {[%clk 0:04:53.7]} 7... Nf6 {[%clk 0:04:54.1]} 8. Bg5 {[%clk
0:04:41.4]} 8... Be6 {[%clk 0:04:46.3]} 9. Qa4 {[%clk 0:04:39.3]} 9... Qd7
{[%clk 0:04:42.3]} 10. Nc3 {[%clk 0:04:34.3]} 10... e4 {[%clk 0:04:36.6]} 11.
O-O {[%clk 0:04:19]} 11... Be7 {[%clk 0:04:20]} 12. Rfd1 {[%clk 0:04:15.9]}
12... O-O {[%clk 0:03:44.1]} 13. cxd5 {[%clk 0:04:07]} 13... Nxd5 {[%clk
0:03:03.8]} 14. Nxd5 {[%clk 0:03:25.4]} 14... Bxd5 {[%clk 0:02:54.2]} 15. Rxd5
{[%clk 0:03:16]} 15... Qxd5 {[%clk 0:02:49]} 16. Bxe7 {[%clk 0:03:15]} 16...
Rfe8 {[%clk 0:02:46.9]} 17. Rd1 {[%clk 0:02:56.9]} 17... Qe5 {[%clk 0:02:24.4]}
18. Bd6 {[%clk 0:02:33.5]} 18... Qxb2 {[%clk 0:02:18.2]} 19. Bxe4 {[%clk
0:02:29]} 19... Rad8 {[%clk 0:02:10.3]} 20. Bf3 {[%clk 0:01:55.6]} 20... Qc3
{[%clk 0:01:46.8]} 21. Bf4 {[%clk 0:01:47.8]} 21... Rxd1+ {[%clk 0:01:29.5]} 22.
Qxd1 {[%clk 0:01:47.7]} 22... Qf6 {[%clk 0:01:27.2]} 23. Qd6 {[%clk 0:01:42]}
23... Qb2 {[%clk 0:01:15.1]} 24. Qxc6 {[%clk 0:01:39.2]} 24... Rf8 {[%clk
0:01:10.4]} 25. Qd5 {[%clk 0:01:35.7]} 25... h6 {[%clk 0:01:04.8]} 26. Kg2
{[%clk 0:01:31.3]} 26... Qb4 {[%clk 0:00:59.3]} 27. Bd6 {[%clk 0:01:26]} 1-0

[Event "Live Chess"]
[Site "Chess.com"]
[Date "2024.06.02"]
[Round "-"]
[White "Queensandpawns"]
[Black "Kyrylo7770"]
[Result "1-0"]
[WhiteElo "2240"]
[BlackElo "1626"]
[TimeControl "300"]
[EndTime "3:30:04 PDT"]
[Termination "Queensandpawns won by checkmate"]

1. e4 {[%clk 0:04:58.7]} 1... c6 {[%clk 0:04:59.4]} 2. d4 {[%clk 0:04:58.3]}
2... d5 {[%clk 0:04:59]} 3. Nc3 {[%clk 0:04:58.2]} 3... Nf6 {[%clk 0:04:58.5]}
4. e5 {[%clk 0:04:56.2]} 4... Ne4 {[%clk 0:04:58]} 5. Nxe4 {[%clk 0:04:55.5]}
5... dxe4 {[%clk 0:04:57.9]} 6. Bc4 {[%clk 0:04:55.4]} 6... Bf5 {[%clk
0:04:56.6]} 7. Ne2 {[%clk 0:04:54.3]} 7... e6 {[%clk 0:04:55.9]} 8. Ng3 {[%clk
0:04:53.7]} 8... Bg6 {[%clk 0:04:55]} 9. h4 {[%clk 0:04:53.3]} 9... h5 {[%clk
0:04:54]} 10. Be3 {[%clk 0:04:52.5]} 10... Bb4+ {[%clk 0:04:53.2]} 11. c3 {[%clk
0:04:51.7]} 11... Be7 {[%clk 0:04:53]} 12. Qd2 {[%clk 0:04:50.8]} 12... Bxh4
{[%clk 0:04:52.2]} 13. O-O-O {[%clk 0:04:49.9]} 13... Bxg3 {[%clk 0:04:51.7]}
14. fxg3 {[%clk 0:04:47.5]} 14... Qa5 {[%clk 0:04:51.2]} 15. g4 {[%clk
0:04:46.3]} 15... b5 {[%clk 0:04:47.1]} 16. Bb3 {[%clk 0:04:39.9]} 16... Nd7
{[%clk 0:04:44.9]} 17. gxh5 {[%clk 0:04:38.6]} 17... Bxh5 {[%clk 0:04:43.2]} 18.
g4 {[%clk 0:04:37.8]} 18... g6 {[%clk 0:04:40.8]} 19. gxh5 {[%clk 0:04:37.5]}
19... gxh5 {[%clk 0:04:40.4]} 20. c4 {[%clk 0:04:34.7]} 20... b4 {[%clk
0:04:32.5]} 21. Kb1 {[%clk 0:04:31.1]} 21... Qc7 {[%clk 0:04:23.9]} 22. Qe2
{[%clk 0:04:28.7]} 22... O-O-O {[%clk 0:04:19.5]} 23. Rxh5 {[%clk 0:04:27.6]}
23... Rhg8 {[%clk 0:04:19.1]} 24. d5 {[%clk 0:04:22.9]} 24... cxd5 {[%clk
0:04:16.3]} 25. cxd5 {[%clk 0:04:22.8]} 25... Qa5 {[%clk 0:04:15]} 26. d6 {[%clk
0:04:19.4]} 26... Kb7 {[%clk 0:04:10.2]} 27. Rh7 {[%clk 0:04:15.1]} 27... Rgf8
{[%clk 0:04:08.2]} 28. Rc1 {[%clk 0:04:08]} 28... Qxe5 {[%clk 0:04:03.4]} 29.
Rc7+ {[%clk 0:04:07.1]} 29... Ka8 {[%clk 0:04:02.9]} 30. Qa6 {[%clk 0:04:05.6]}
30... Nb6 {[%clk 0:03:10.8]} 31. Qxa7# {[%clk 0:04:00.7]} 1-0

[Event "Live Chess"]
[Site "Chess.com"]
[Date "2024.06.02"]
[Round "-"]
[White "Dhaydon19"]
[Black "JohanKjeldahl"]
[Result "1-0"]
[WhiteElo "2629"]
[BlackElo "1798"]
[TimeControl "300"]
[EndTime "3:30:14 PDT"]
[Termination "Dhaydon19 won by resignation"]

1. d4 {[%clk 0:04:57.2]} 1... Nf6 {[%clk 0:04:57.8]} 2. Nf3 {[%clk 0:04:56.8]}
2... d6 {[%clk 0:04:55.9]} 3. g3 {[%clk 0:04:56.2]} 3... g6 {[%clk 0:04:53.6]}
4. Bg2 {[%clk 0:04:55.6]} 4... Bg7 {[%clk 0:04:53.1]} 5. c4 {[%clk 0:04:52.3]}
5... O-O {[%clk 0:04:51.7]} 6. Nc3 {[%clk 0:04:51]} 6... c6 {[%clk 0:04:50.9]}
7. O-O {[%clk 0:04:48.6]} 7... Nbd7 {[%clk 0:04:49.8]} 8. d5 {[%clk 0:04:47.3]}
8... c5 {[%clk 0:04:47.8]} 9. e4 {[%clk 0:04:45.6]} 9... a6 {[%clk 0:04:46]} 10.
a4 {[%clk 0:04:44]} 10... Qc7 {[%clk 0:04:44.4]} 11. Re1 {[%clk 0:04:42.1]}
11... b6 {[%clk 0:04:37.4]} 12. Bf4 {[%clk 0:04:39.4]} 12... Nh5 {[%clk
0:04:35.2]} 13. Bd2 {[%clk 0:04:38]} 13... Bb7 {[%clk 0:04:28.8]} 14. Qc2 {[%clk
0:04:35.7]} 14... Ne5 {[%clk 0:04:24.4]} 15. Nxe5 {[%clk 0:04:34.4]} 15... Bxe5
{[%clk 0:04:22.6]} 16. Be3 {[%clk 0:04:34]} 16... Bg7 {[%clk 0:04:08.2]} 17. Qd2
{[%clk 0:04:09]} 17... Nf6 {[%clk 0:04:06.2]} 18. h3 {[%clk 0:04:06.7]} 18...
Qd7 {[%clk 0:04:01.9]} 19. Bh6 {[%clk 0:04:02.2]} 19... Rfe8 {[%clk 0:03:48.3]}
20. Bxg7 {[%clk 0:04:00.9]} 20... Kxg7 {[%clk 0:03:46.5]} 21. e5 {[%clk
0:03:59.2]} 21... dxe5 {[%clk 0:03:42.2]} 22. Rxe5 {[%clk 0:03:57.9]} 22... Qd6
{[%clk 0:03:40.9]} 23. Rae1 {[%clk 0:03:50.7]} 23... Nd7 {[%clk 0:03:30.9]} 24.
R5e2 {[%clk 0:03:45.4]} 24... Rab8 {[%clk 0:03:27.5]} 25. Ne4 {[%clk 0:03:38.4]}
25... Qc7 {[%clk 0:03:20.8]} 26. Qc3+ {[%clk 0:03:36.6]} 26... f6 {[%clk
0:03:12.7]} 27. Ng5 {[%clk 0:03:27.8]} 27... Nf8 {[%clk 0:03:09.3]} 28. Ne6+
{[%clk 0:03:20.5]} 28... Nxe6 {[%clk 0:03:06.9]} 29. Rxe6 {[%clk 0:03:20]} 29...
Bc8 {[%clk 0:02:42.8]} 30. d6 {[%clk 0:03:17.4]} 1-0

[Event "Live Chess"]
[Site "Chess.com"]
[Date "2024.06.02"]
[Round "-"]
[White "NeilDruggan73"]
[Black "dmitro74"]
[Result "0-1"]
[WhiteElo "1697"]
[BlackElo "1723"]
[TimeControl "300"]
[EndTime "3:30:24 PDT"]
[Termination "dmitro74 won on time"]

1. d4 {[%clk 0:04:57.5]} 1... d5 {[%clk 0:04:58.9]} 2. Bg5 {[%clk 0:04:56.1]}
2... Nf6 {[%clk 0:04:55.8]} 3. Bxf6 {[%clk 0:04:53.6]} 3... exf6 {[%clk
0:04:54.7]} 4. e3 {[%clk 0:04:52.6]} 4... c5 {[%clk 0:04:53.3]} 5. Nf3 {[%clk
0:04:50.9]} 5... Nc6 {[%clk 0:04:50.5]} 6. c3 {[%clk 0:04:47.1]} 6... Bg4 {[%clk
0:04:47.3]} 7. Be2 {[%clk 0:04:45.9]} 7... c4 {[%clk 0:04:43.7]} 8. O-O {[%clk
0:04:44.5]} 8... f5 {[%clk 0:04:42]} 9. b3 {[%clk 0:04:43.2]} 9... b5 {[%clk
0:04:38.6]} 10. Nbd2 {[%clk 0:04:40.5]} 10... Bd6 {[%clk 0:04:33.4]} 11. Rb1
{[%clk 0:04:38.9]} 11... O-O {[%clk 0:04:31.3]} 12. bxc4 {[%clk 0:04:36.4]}
12... bxc4 {[%clk 0:04:28.5]} 13. Ne1 {[%clk 0:04:21.2]} 13... Rb8 {[%clk
0:04:26.7]} 14. Bxg4 {[%clk 0:04:12.1]} 14... Rxb1 {[%clk 0:04:22.1]} 15. Nxb1
{[%clk 0:04:10]} 15... fxg4 {[%clk 0:04:18.6]} 16. Qxg4 {[%clk 0:04:08.6]} 16...
Qb8 {[%clk 0:04:16.8]} 17. Nf3 {[%clk 0:04:02.6]} 17... f5 {[%clk 0:04:09.9]}
18. Qh5 {[%clk 0:03:57.2]} 18... g6 {[%clk 0:04:05.5]} 19. Qh4 {[%clk
0:03:49.9]} 19... f4 {[%clk 0:04:00]} 20. Ng5 {[%clk 0:03:46.6]} 20... Qc7
{[%clk 0:03:42.6]} 21. Ne6 {[%clk 0:03:43.7]} 21... Qf7 {[%clk 0:03:25.7]} 22.
Nxf8 {[%clk 0:03:39.6]} 22... Qxf8 {[%clk 0:03:24.5]} 23. Nd2 {[%clk 0:03:35.6]}
23... Ne7 {[%clk 0:03:16.2]} 24. Nf3 {[%clk 0:03:27.9]} 24... Nf5 {[%clk
0:03:13.4]} 25. Qg4 {[%clk 0:03:23.6]} 25... fxe3 {[%clk 0:03:11.2]} 26. fxe3
{[%clk 0:03:19.5]} 26... Qe7 {[%clk 0:03:07.1]} 27. Qg5 {[%clk 0:02:32]} 27...
Qxe3+ {[%clk 0:03:01]} 28. Qxe3 {[%clk 0:02:29.7]} 28... Nxe3 {[%clk 0:02:59.4]}
29. Re1 {[%clk 0:02:27.8]} 29... Nf5 {[%clk 0:02:49.5]} 30. Re6 {[%clk
0:02:24.1]} 30... Kf7 {[%clk 0:02:45.6]} 31. Ng5+ {[%clk 0:02:14.5]} 31... Kg7
{[%clk 0:02:43.8]} 32. g3 {[%clk 0:02:02]} 32... h6 {[%clk 0:02:40.1]} 33. Nf3
{[%clk 0:01:56]} 33... Kf7 {[%clk 0:02:38.5]} 34. Re2 {[%clk 0:01:46.3]} 34...
a5 {[%clk 0:02:25.9]} 35. Ne5+ {[%clk 0:01:44.9]} 35... Kf6 {[%clk 0:02:22.3]}
36. Nc6 {[%clk 0:01:42.9]} 36... a4 {[%clk 0:02:18]} 37. Kg2 {[%clk 0:01:34.6]}
37... Ng7 {[%clk 0:02:05.3]} 38. Nd8 {[%clk 0:01:30.8]} 38... Bc7 {[%clk
0:01:53.1]} 39. Nb7 {[%clk 0:01:17.8]} 39... Ne6 {[%clk 0:01:47.1]} 40. h4
{[%clk 0:01:13]} 40... a3 {[%clk 0:01:31.6]} 41. Kf3 {[%clk 0:01:08.5]} 41... g5
{[%clk 0:01:29.5]} 42. h5 {[%clk 0:01:04.5]} 42... Ng7 {[%clk 0:01:10.9]} 43. g4
{[%clk 0:01:00.1]} 43... Ne6 {[%clk 0:01:09.3]} 44. Re1 {[%clk 0:00:53.4]} 44...
Nf4 {[%clk 0:01:04.2]} 45. Re8 {[%clk 0:00:49.8]} 45... Nd3 {[%clk 0:00:57.5]}
46. Rc8 {[%clk 0:00:41.6]} 46... Bf4 {[%clk 0:00:53.3]} 47. Rc6+ {[%clk
0:00:38.5]} 47... Kg7 {[%clk 0:00:50.1]} 48. Ra6 {[%clk 0:00:30.4]} 48... Bc1
{[%clk 0:00:46.4]} 49. Nc5 {[%clk 0:00:23.3]} 49... Bb2 {[%clk 0:00:42.8]} 50.
Nxd3 {[%clk 0:00:19.2]} 50... Bxc3 {[%clk 0:00:40.7]} 51. Rxa3 {[%clk
0:00:16.3]} 51... Bxd4 {[%clk 0:00:36.3]} 52. Nb4 {[%clk 0:00:12.9]} 52... Bc5
{[%clk 0:00:34.6]} 53. Ra5 {[%clk 0:00:08.2]} 53... Bxb4 {[%clk 0:00:32.7]} 54.
Rxd5 {[%clk 0:00:07.8]} 54... c3 {[%clk 0:00:31.3]} 55. Rd4 {[%clk 0:00:06.4]}
55... Bc5 {[%clk 0:00:22.8]} 56. Rc4 {[%clk 0:00:05.8]} 56... Bb6 {[%clk
0:00:15.4]} 57. Rxc3 {[%clk 0:00:04.8]} 57... Ba7 {[%clk 0:00:12.6]} 58. Rc6
{[%clk 0:00:04.1]} 58... Bb8 {[%clk 0:00:10]} 59. Rc8 {[%clk 0:00:02.1]} 59...
Be5 {[%clk 0:00:08]} 60. a4 {[%clk 0:00:01.5]} 60... Bb2 {[%clk 0:00:05.9]} 61.
a5 {[%clk 0:00:00.2]} 61... Bd4 {[%clk 0:00:04.7]} 0-1

[Event "Live Chess"]
[Site "Chess.com"]
[Date "2024.06.02"]
[Round "-"]
[White "MagnersCarlsberg2870"]
[Black "upoe610"]
[Result "1-0"]
[WhiteElo "1804"]
[BlackElo "2119"]
[TimeControl "300"]
[EndTime "3:30:31 PDT"]
[Termination "MagnersCarlsberg2870 won by checkmate"]

1. d4 {[%clk 0:04:56.8]} 1... Nf6 {[%clk 0:04:58.8]} 2. Nf3 {[%clk 0:04:55.6]}
2... c5 {[%clk 0:04:55.5]} 3. e3 {[%clk 0:04:54.3]} 3... d6 {[%clk 0:04:49.6]}
4. Bc4 {[%clk 0:04:49.1]} 4... g6 {[%clk 0:04:47.2]} 5. dxc5 {[%clk 0:04:43.4]}
5... d5 {[%clk 0:04:45.3]} 6. Bb5+ {[%clk 0:04:41.5]} 6... Bd7 {[%clk
0:04:44.7]} 7. Bxd7+ {[%clk 0:04:40]} 7... Nbxd7 {[%clk 0:04:44.6]} 8. Nc3
{[%clk 0:04:36.3]} 8... Nxc5 {[%clk 0:04:42.8]} 9. Qe2 {[%clk 0:04:31.1]} 9...
Bg7 {[%clk 0:04:39.1]} 10. Qb5+ {[%clk 0:04:29.7]} 10... Ncd7 {[%clk 0:04:37.8]}
11. Qxb7 {[%clk 0:04:26.4]} 11... O-O {[%clk 0:04:36.2]} 12. O-O {[%clk
0:04:22.5]} 12... Nb6 {[%clk 0:04:32.3]} 13. Nd4 {[%clk 0:04:11]} 13... Qd6
{[%clk 0:04:28.3]} 14. Ncb5 {[%clk 0:04:05.7]} 14... Qc5 {[%clk 0:04:25.1]} 15.
b4 {[%clk 0:04:00]} 15... Qxb4 {[%clk 0:04:23.8]} 16. Ba3 {[%clk 0:03:57.9]}
16... Qc4 {[%clk 0:04:19.9]} 17. Bxe7 {[%clk 0:03:54.5]} 17... Rfb8 {[%clk
0:04:16.5]} 18. Qa6 {[%clk 0:03:46.6]} 18... Ne4 {[%clk 0:04:10]} 19. Qa3 {[%clk
0:03:31]} 19... Na4 {[%clk 0:04:02.8]} 20. Nd6 {[%clk 0:03:19.6]} 20... Nxd6
{[%clk 0:03:57.5]} 21. Bxd6 {[%clk 0:03:18.3]} 21... Nc3 {[%clk 0:03:56.5]} 22.
Bxb8 {[%clk 0:03:12.4]} 22... Rxb8 {[%clk 0:03:55.5]} 23. Qd6 {[%clk 0:03:09.8]}
23... Rc8 {[%clk 0:03:51.4]} 24. Rad1 {[%clk 0:02:42.5]} 24... Bxd4 {[%clk
0:03:42.4]} 25. exd4 {[%clk 0:02:33.5]} 25... Ne2+ {[%clk 0:03:41.2]} 26. Kh1
{[%clk 0:02:31.2]} 26... Nxd4 {[%clk 0:03:40.5]} 27. Qd7 {[%clk 0:02:28.1]}
27... Rc7 {[%clk 0:03:35.6]} 28. Qd8+ {[%clk 0:02:22.1]} 28... Kg7 {[%clk
0:03:34.9]} 29. Rfe1 {[%clk 0:02:20.8]} 29... Nxc2 {[%clk 0:03:32.1]} 30. Re8
{[%clk 0:02:15.4]} 30... d4 {[%clk 0:03:25]} 31. Rg8+ {[%clk 0:02:07.7]} 31...
Kh6 {[%clk 0:03:23.9]} 32. Qh4# {[%clk 0:02:06.1]} 1-0

[Event "Live Chess"]
[Site "Chess.com"]
[Date "2024.06.02"]
[Round "-"]
[White "AlexanderMatlak"]
[Black "halfberg"]
[Result "1-0"]
[WhiteElo "2396"]
[BlackElo "1882"]
[TimeControl "300"]
[EndTime "3:31:08 PDT"]
[Termination "AlexanderMatlak won by resignation"]

1. c4 {[%clk 0:04:57.7]} 1... Nf6 {[%clk 0:04:58.2]} 2. Nf3 {[%clk 0:04:56.3]}
2... e6 {[%clk 0:04:53.8]} 3. g3 {[%clk 0:04:54.9]} 3... d5 {[%clk 0:04:49.9]}
4. Bg2 {[%clk 0:04:52.7]} 4... c6 {[%clk 0:04:49]} 5. O-O {[%clk 0:04:52]} 5...
Be7 {[%clk 0:04:48.1]} 6. d3 {[%clk 0:04:49.2]} 6... O-O {[%clk 0:04:47]} 7. a3
{[%clk 0:04:48.7]} 7... a5 {[%clk 0:04:44.6]} 8. b3 {[%clk 0:04:48]} 8... Nbd7
{[%clk 0:04:41.1]} 9. Bb2 {[%clk 0:04:46.7]} 9... Re8 {[%clk 0:04:39.8]} 10.
Nbd2 {[%clk 0:04:46]} 10... h6 {[%clk 0:04:36.6]} 11. Rc1 {[%clk 0:04:45.1]}
11... Qb6 {[%clk 0:04:27.4]} 12. Rc2 {[%clk 0:04:39.2]} 12... Nf8 {[%clk
0:04:19.5]} 13. Qa1 {[%clk 0:04:37.6]} 13... N8h7 {[%clk 0:04:14]} 14. Bd4
{[%clk 0:04:33.4]} 14... c5 {[%clk 0:04:04.9]} 15. Bb2 {[%clk 0:04:28.6]} 15...
d4 {[%clk 0:04:00.5]} 16. Qd1 {[%clk 0:04:20.4]} 16... Bd7 {[%clk 0:03:57.9]}
17. h3 {[%clk 0:04:11.2]} 17... Bc6 {[%clk 0:03:55.4]} 18. e3 {[%clk 0:04:05.4]}
18... dxe3 {[%clk 0:03:45.5]} 19. fxe3 {[%clk 0:04:05.3]} 19... Rad8 {[%clk
0:03:42.6]} 20. Qe2 {[%clk 0:04:03.5]} 20... Nh5 {[%clk 0:03:17.4]} 21. Be5
{[%clk 0:03:38]} 21... Bf6 {[%clk 0:03:01]} 22. g4 {[%clk 0:03:28.5]} 22... Bxe5
{[%clk 0:02:52.6]} 23. Nxe5 {[%clk 0:03:11.2]} 23... Bxg2 {[%clk 0:02:49.7]} 24.
Qxg2 {[%clk 0:03:03.9]} 24... N5f6 {[%clk 0:02:47.8]} 25. h4 {[%clk 0:02:51.2]}
25... Nd7 {[%clk 0:02:32.5]} 26. Nxf7 {[%clk 0:02:48.5]} 26... Rb8 {[%clk
0:02:23]} 27. Ne4 {[%clk 0:02:46]} 27... Nhf6 {[%clk 0:02:17.2]} 28. Nfd6 {[%clk
0:02:42.5]} 28... Re7 {[%clk 0:02:08.5]} 29. g5 {[%clk 0:02:36.4]} 29... Nxe4
{[%clk 0:02:06.1]} 30. Nxe4 {[%clk 0:02:34]} 30... hxg5 {[%clk 0:02:02.1]} 31.
hxg5 {[%clk 0:02:31.7]} 31... Qc7 {[%clk 0:01:57]} 32. g6 {[%clk 0:02:24.7]}
32... Ne5 {[%clk 0:01:50.9]} 33. d4 {[%clk 0:02:19.8]} 33... Nd7 {[%clk
0:01:34.3]} 34. Qh3 {[%clk 0:02:13.5]} 1-0